[Event "*** Titled Tuesday 3|2 Blitz"]
[Site "Chess.com"]
[Date "2016.10.04"]
[Round "3"]
[White "elefante33"]
[Black "Ar4uha"]
[Result "0-1"]
[WhiteElo "2452"]
[BlackElo "2468"]
[TimeControl "180+2"]
[EndTime "11:35:15 PDT"]
[Termination "Ar4uha won on time"]

1. e4 {[%clk 0:03:02]} 1... e5 {[%clk 0:03:00.2]} 2. Nf3 {[%clk 0:03:02.7]} 2...
d6 {[%clk 0:03:01.4]} 3. d4 {[%clk 0:03:03.1]} 3... exd4 {[%clk 0:03:03.3]} 4.
Nxd4 {[%clk 0:03:03.9]} 4... Nf6 {[%clk 0:03:04.6]} 5. Nc3 {[%clk 0:03:05.1]}
5... Be7 {[%clk 0:03:06.2]} 6. Be2 {[%clk 0:03:02.9]} 6... O-O {[%clk
0:03:07.6]} 7. Bf4 {[%clk 0:03:03.7]} 7... Re8 {[%clk 0:03:04.8]} 8. Qd2 {[%clk
0:03:01.6]} 8... Nc6 {[%clk 0:03:01.1]} 9. O-O-O {[%clk 0:02:56.9]} 9... Nxd4
{[%clk 0:02:55.2]} 10. Qxd4 {[%clk 0:02:57.2]} 10... Be6 {[%clk 0:02:56.6]} 11.
g4 {[%clk 0:02:44.8]} 11... Nxg4 {[%clk 0:01:45.7]} 12. Bxg4 {[%clk 0:01:55.6]}
12... Bxg4 {[%clk 0:01:47.6]} 13. Rdg1 {[%clk 0:01:52.4]} 13... Bf6 {[%clk
0:01:37.3]} 14. Qd3 {[%clk 0:01:52]} 14... Be6 {[%clk 0:01:34.3]} 15. h4 {[%clk
0:01:47.4]} 15... c6 {[%clk 0:01:13.9]} 16. Bxd6 {[%clk 0:01:43.9]} 16... Qa5
{[%clk 0:01:15]} 17. e5 {[%clk 0:01:27.6]} 17... Bxe5 {[%clk 0:00:39]} 18. Rg5
{[%clk 0:01:19.3]} 18... f6 {[%clk 0:00:40.1]} 19. f4 {[%clk 0:00:51.3]} 19...
fxg5 {[%clk 0:00:40.1]} 20. fxe5 {[%clk 0:00:47.9]} 20... g4 {[%clk 0:00:38.3]}
21. h5 {[%clk 0:00:49]} 21... h6 {[%clk 0:00:34.4]} 22. Qg6 {[%clk 0:00:38]}
22... Bf7 {[%clk 0:00:21.2]} 23. Qxg4 {[%clk 0:00:37.9]} 23... Rxe5 {[%clk
0:00:22.8]} 24. Bxe5 {[%clk 0:00:30.6]} 24... Qxe5 {[%clk 0:00:24.7]} 25. Rg1
{[%clk 0:00:31.4]} 25... Re8 {[%clk 0:00:25.9]} 26. Ne4 {[%clk 0:00:25.2]} 26...
Bxh5 {[%clk 0:00:25]} 27. Qd7 {[%clk 0:00:04.7]} 27... Re7 {[%clk 0:00:22.2]}
28. Qd8+ {[%clk 0:00:03.3]} 28... Kh7 {[%clk 0:00:21.2]} 0-1

[Event "*** Titled Tuesday 3|2 Blitz"]
[Site "Chess.com"]
[Date "2016.10.04"]
[Round "3"]
[White "BjarkeSahl"]
[Black "Saitama_Hero"]
[Result "0-1"]
[WhiteElo "2102"]
[BlackElo "2181"]
[TimeControl "180+2"]
[EndTime "11:35:18 PDT"]
[Termination "Saitama_Hero won by resignation"]

1. b3 {[%clk 0:02:46.9]} 1... d5 {[%clk 0:02:56.3]} 2. Bb2 {[%clk 0:02:47.4]}
2... Bg4 {[%clk 0:02:56.5]} 3. f4 {[%clk 0:02:32.4]} 3... Nf6 {[%clk 0:02:48.6]}
4. Nf3 {[%clk 0:02:33.6]} 4... Bxf3 {[%clk 0:02:39.1]} 5. exf3 {[%clk
0:02:23.7]} 5... e6 {[%clk 0:02:40.3]} 6. Bd3 {[%clk 0:02:09.7]} 6... Bd6 {[%clk
0:02:39.8]} 7. g3 {[%clk 0:02:08.8]} 7... c5 {[%clk 0:02:32.9]} 8. O-O {[%clk
0:02:07.5]} 8... Nc6 {[%clk 0:02:27.3]} 9. Kg2 {[%clk 0:02:05.1]} 9... a6 {[%clk
0:02:21.9]} 10. a3 {[%clk 0:01:58.4]} 10... h5 {[%clk 0:02:10.7]} 11. Nc3 {[%clk
0:01:48.8]} 11... h4 {[%clk 0:02:10.3]} 12. Re1 {[%clk 0:01:22.2]} 12... Nh5
{[%clk 0:02:06.9]} 13. Ne2 {[%clk 0:01:14.1]} 13... b5 {[%clk 0:01:48.2]} 14.
Ng1 {[%clk 0:01:07.1]} 14... hxg3 {[%clk 0:01:46.5]} 15. hxg3 {[%clk 0:01:07.8]}
15... Nxg3 {[%clk 0:01:48]} 16. Kxg3 {[%clk 0:00:50.4]} 16... Qh4+ {[%clk
0:01:30.7]} 17. Kg2 {[%clk 0:00:49.2]} 17... Bxf4 {[%clk 0:01:26.5]} 18. Kf1
{[%clk 0:00:40.9]} 18... Qg3 {[%clk 0:01:17]} 19. Re2 {[%clk 0:00:37.4]} 19...
Rh1 {[%clk 0:01:12.1]} 20. Rg2 {[%clk 0:00:38.7]} 20... Qh4 {[%clk 0:01:07.8]}
21. Qe2 {[%clk 0:00:36.3]} 21... c4 {[%clk 0:01:05.7]} 22. bxc4 {[%clk 0:00:36]}
22... bxc4 {[%clk 0:01:07.6]} 23. Bxc4 {[%clk 0:00:37.2]} 23... dxc4 {[%clk
0:01:09.5]} 24. Qxc4 {[%clk 0:00:36.7]} 24... Ne7 {[%clk 0:01:08.3]} 25. d3
{[%clk 0:00:20.3]} 25... Rc8 {[%clk 0:01:08.4]} 26. Qa4+ {[%clk 0:00:18.6]}
26... Rc6 {[%clk 0:01:05.4]} 27. Re1 {[%clk 0:00:19.3]} 27... Kd7 {[%clk
0:01:04.4]} 28. Ree2 {[%clk 0:00:19.2]} 28... Nf5 {[%clk 0:01:03.5]} 29. Re4
{[%clk 0:00:16.8]} 29... g5 {[%clk 0:01:01.8]} 30. Bf6 {[%clk 0:00:16.9]} 30...
Ng3+ {[%clk 0:00:52.1]} 31. Rxg3 {[%clk 0:00:15]} 31... Qxg3 {[%clk 0:00:54]}
32. Bd4 {[%clk 0:00:13.6]} 32... Qxf3+ {[%clk 0:00:53.4]} 33. Bf2 {[%clk
0:00:15.1]} 33... Qd1+ {[%clk 0:00:35.4]} 34. Re1 {[%clk 0:00:15.2]} 34... Qxc2
{[%clk 0:00:34.7]} 35. Qxc2 {[%clk 0:00:14.1]} 0-1

[Event "*** Titled Tuesday 3|2 Blitz"]
[Site "Chess.com"]
[Date "2016.10.04"]
[Round "3"]
[White "RodinMihail"]
[Black "Rating-Schmating"]
[Result "1-0"]
[WhiteElo "2351"]
[BlackElo "2206"]
[TimeControl "180+2"]
[EndTime "11:35:26 PDT"]
[Termination "RodinMihail won by checkmate"]

1. e4 {[%clk 0:03:02]} 1... e6 {[%clk 0:03:00.3]} 2. d4 {[%clk 0:03:02.6]} 2...
d5 {[%clk 0:03:00]} 3. Nd2 {[%clk 0:03:03.6]} 3... a6 {[%clk 0:02:59.7]} 4. Ngf3
{[%clk 0:03:03.3]} 4... Nf6 {[%clk 0:03:00.1]} 5. Bd3 {[%clk 0:03:03.3]} 5... c5
{[%clk 0:03:00.3]} 6. c3 {[%clk 0:03:04.5]} 6... Nc6 {[%clk 0:03:00]} 7. O-O
{[%clk 0:03:04.8]} 7... Be7 {[%clk 0:03:00.8]} 8. e5 {[%clk 0:03:03.4]} 8... Nd7
{[%clk 0:03:01.9]} 9. Re1 {[%clk 0:03:03.9]} 9... g5 {[%clk 0:03:02.8]} 10. h3
{[%clk 0:03:02.6]} 10... h5 {[%clk 0:03:03.3]} 11. Nf1 {[%clk 0:02:40.5]} 11...
g4 {[%clk 0:03:02.6]} 12. hxg4 {[%clk 0:02:40.6]} 12... hxg4 {[%clk 0:03:03.1]}
13. N3h2 {[%clk 0:02:42.2]} 13... cxd4 {[%clk 0:02:57.7]} 14. Nxg4 {[%clk
0:02:41.3]} 14... dxc3 {[%clk 0:02:51.4]} 15. bxc3 {[%clk 0:02:43.2]} 15... Bg5
{[%clk 0:01:48.3]} 16. f4 {[%clk 0:02:43]} 16... Bh4 {[%clk 0:01:48.1]} 17. g3
{[%clk 0:02:43.8]} 17... Be7 {[%clk 0:01:43.4]} 18. Kg2 {[%clk 0:02:44.1]} 18...
d4 {[%clk 0:01:43.8]} 19. cxd4 {[%clk 0:02:39.1]} 19... Nxd4 {[%clk 0:01:43.3]}
20. Be4 {[%clk 0:02:29.8]} 20... Nc5 {[%clk 0:01:42.4]} 21. Be3 {[%clk
0:02:13.7]} 21... Nxe4 {[%clk 0:01:35.9]} 22. Qxd4 {[%clk 0:02:15.1]} 22... Qxd4
{[%clk 0:01:21.2]} 23. Bxd4 {[%clk 0:02:17]} 23... Nc5 {[%clk 0:01:22.5]} 24.
Nfe3 {[%clk 0:02:16.2]} 24... Nd7 {[%clk 0:01:22.8]} 25. Rh1 {[%clk 0:02:14.8]}
25... Rg8 {[%clk 0:01:23]} 26. Rh7 {[%clk 0:02:09]} 26... Nf8 {[%clk 0:01:23.1]}
27. Rh6 {[%clk 0:02:04.7]} 27... b5 {[%clk 0:01:20.3]} 28. Rc1 {[%clk
0:01:59.1]} 28... Bb7+ {[%clk 0:01:20.8]} 29. Kf2 {[%clk 0:02:00.7]} 29... Rc8
{[%clk 0:01:21]} 30. Rxc8+ {[%clk 0:02:00.2]} 30... Bxc8 {[%clk 0:01:21.9]} 31.
Ke2 {[%clk 0:01:53.4]} 31... Ng6 {[%clk 0:01:18.3]} 32. Kd3 {[%clk 0:01:51.2]}
32... Bb7 {[%clk 0:01:17.7]} 33. Rh7 {[%clk 0:01:50.2]} 33... Bf3 {[%clk
0:01:17.3]} 34. Nh6 {[%clk 0:01:49]} 34... Rf8 {[%clk 0:01:16.8]} 35. Neg4
{[%clk 0:01:46.5]} 35... Bd5 {[%clk 0:01:12.4]} 36. a3 {[%clk 0:01:44]} 36... a5
{[%clk 0:01:12.8]} 37. Bc3 {[%clk 0:01:41.9]} 37... b4 {[%clk 0:01:13.5]} 38.
axb4 {[%clk 0:01:42.7]} 38... axb4 {[%clk 0:01:15.4]} 39. Bb2 {[%clk 0:01:44.2]}
39... b3 {[%clk 0:01:15.6]} 40. Kd4 {[%clk 0:01:45.1]} 40... Kd7 {[%clk
0:01:15.8]} 41. Nxf7 {[%clk 0:01:43.7]} 41... Kc6 {[%clk 0:01:13.5]} 42. Ne3
{[%clk 0:01:43.6]} 42... Ra8 {[%clk 0:01:11]} 43. Nxd5 {[%clk 0:01:41.1]} 43...
exd5 {[%clk 0:01:11.4]} 44. Rh6 {[%clk 0:01:42.7]} 44... Ra2 {[%clk 0:01:06.3]}
45. Rxg6+ {[%clk 0:01:42.1]} 45... Kd7 {[%clk 0:01:07.3]} 46. Kc3 {[%clk
0:01:39.6]} 46... Ba3 {[%clk 0:01:00.2]} 47. Kxb3 {[%clk 0:01:37.6]} 47... Rxb2+
{[%clk 0:01:00.2]} 48. Kxa3 {[%clk 0:01:38.8]} 48... Rb8 {[%clk 0:01:00.5]} 49.
Nd6 {[%clk 0:01:39]} 49... d4 {[%clk 0:01:00.7]} 50. Ne4 {[%clk 0:01:39.2]}
50... Ke7 {[%clk 0:01:00.3]} 51. Rd6 {[%clk 0:01:39.5]} 51... d3 {[%clk
0:01:00.2]} 52. Rxd3 {[%clk 0:01:40.4]} 52... Ra8+ {[%clk 0:01:02.1]} 53. Kb4
{[%clk 0:01:41.1]} 53... Ra1 {[%clk 0:01:03.6]} 54. Nc5 {[%clk 0:01:40.7]} 54...
Rb1+ {[%clk 0:01:04.9]} 55. Kc4 {[%clk 0:01:41.5]} 55... Rg1 {[%clk 0:01:06.8]}
56. f5 {[%clk 0:01:40.9]} 56... Re1 {[%clk 0:01:06.7]} 57. Rd7+ {[%clk
0:01:41.3]} 57... Ke8 {[%clk 0:01:07.5]} 58. e6 {[%clk 0:01:42.6]} 58... Rc1+
{[%clk 0:01:08.3]} 59. Kd5 {[%clk 0:01:43.6]} 59... Rd1+ {[%clk 0:01:09.5]} 60.
Kc6 {[%clk 0:01:44.7]} 60... Rxd7 {[%clk 0:01:08.2]} 61. exd7+ {[%clk 0:01:45]}
61... Kd8 {[%clk 0:01:08.4]} 62. Ne6+ {[%clk 0:01:46]} 62... Ke7 {[%clk
0:01:02.5]} 63. d8=Q+ {[%clk 0:01:47.9]} 63... Kf7 {[%clk 0:01:00.7]} 64. Qf8#
{[%clk 0:01:49.5]} 1-0

[Event "*** Titled Tuesday 3|2 Blitz"]
[Site "Chess.com"]
[Date "2016.10.04"]
[Round "3"]
[White "stefanodinn"]
[Black "AdrianaNikolova"]
[Result "0-1"]
[WhiteElo "2215"]
[BlackElo "2250"]
[TimeControl "180+2"]
[EndTime "11:35:29 PDT"]
[Termination "AdrianaNikolova won on time"]

1. e4 {[%clk 0:03:01.2]} 1... c5 {[%clk 0:03:00.3]} 2. Ne2 {[%clk 0:02:59.6]}
2... Nc6 {[%clk 0:03:00.9]} 3. Nbc3 {[%clk 0:02:59.1]} 3... Nf6 {[%clk
0:02:58.3]} 4. d4 {[%clk 0:02:59.9]} 4... cxd4 {[%clk 0:02:59.5]} 5. Nxd4 {[%clk
0:03:01]} 5... d6 {[%clk 0:03:01]} 6. Bg5 {[%clk 0:03:00.4]} 6... e6 {[%clk
0:03:02]} 7. Qd2 {[%clk 0:03:00.9]} 7... a6 {[%clk 0:03:03.3]} 8. O-O-O {[%clk
0:02:57.3]} 8... Bd7 {[%clk 0:03:04.4]} 9. f3 {[%clk 0:02:55.6]} 9... h6 {[%clk
0:03:00.9]} 10. Be3 {[%clk 0:02:52.9]} 10... b5 {[%clk 0:03:01.2]} 11. Kb1
{[%clk 0:02:47]} 11... Ne5 {[%clk 0:02:58.2]} 12. f4 {[%clk 0:02:29]} 12... Nc4
{[%clk 0:02:58.4]} 13. Bxc4 {[%clk 0:02:29.1]} 13... bxc4 {[%clk 0:03:00.3]} 14.
e5 {[%clk 0:02:24.9]} 14... Ng4 {[%clk 0:02:35.7]} 15. Qe2 {[%clk 0:02:15.8]}
15... Nxe3 {[%clk 0:02:33.4]} 16. Qxe3 {[%clk 0:02:16.9]} 16... d5 {[%clk
0:02:34.5]} 17. f5 {[%clk 0:02:15]} 17... Bc5 {[%clk 0:02:34.5]} 18. fxe6 {[%clk
0:02:15.6]} 18... fxe6 {[%clk 0:02:08]} 19. Rhf1 {[%clk 0:01:55]} 19... Qg5
{[%clk 0:02:02.3]} 20. Qh3 {[%clk 0:01:33.1]} 20... Bxd4 {[%clk 0:01:51.8]} 21.
Rxd4 {[%clk 0:01:31.5]} 21... Qxe5 {[%clk 0:01:52.8]} 22. Rdf4 {[%clk
0:01:19.2]} 22... O-O-O {[%clk 0:01:51.5]} 23. Rf7 {[%clk 0:01:09.3]} 23... g5
{[%clk 0:01:50.6]} 24. a3 {[%clk 0:00:38.5]} 24... h5 {[%clk 0:01:41.1]} 25. g3
{[%clk 0:00:38.5]} 25... d4 {[%clk 0:01:28.3]} 26. Nd1 {[%clk 0:00:09]} 26...
Qd5 {[%clk 0:01:06.8]} 27. Re1 {[%clk 0:00:03.5]} 27... e5 {[%clk 0:01:05.2]}
28. Qf1 {[%clk 0:00:04.5]} 28... Rhe8 {[%clk 0:00:50.7]} 29. Rf6 {[%clk
0:00:04.1]} 29... Bb5 {[%clk 0:00:51]} 30. Qf5+ {[%clk 0:00:04.1]} 30... Kb8
{[%clk 0:00:46.2]} 31. Qxg5 {[%clk 0:00:04.9]} 31... c3 {[%clk 0:00:35.2]} 32.
Rf5 {[%clk 0:00:04.1]} 32... d3 {[%clk 0:00:29.8]} 33. Nxc3 {[%clk 0:00:04.2]}
33... dxc2+ {[%clk 0:00:30.5]} 0-1

[Event "*** Titled Tuesday 3|2 Blitz"]
[Site "Chess.com"]
[Date "2016.10.04"]
[Round "3"]
[White "BCNUM8"]
[Black "Usurpov"]
[Result "0-1"]
[WhiteElo "2135"]
[BlackElo "2294"]
[TimeControl "180+2"]
[EndTime "11:35:43 PDT"]
[Termination "Usurpov won by resignation"]

1. d4 {[%clk 0:03:01.9]} 1... Nf6 {[%clk 0:02:59.8]} 2. Bg5 {[%clk 0:03:02.6]}
2... g6 {[%clk 0:02:57.5]} 3. Bxf6 {[%clk 0:03:03.4]} 3... exf6 {[%clk
0:02:59.4]} 4. e3 {[%clk 0:03:05.3]} 4... Bg7 {[%clk 0:02:59.1]} 5. c4 {[%clk
0:03:07.2]} 5... f5 {[%clk 0:02:52.7]} 6. Nc3 {[%clk 0:03:09.1]} 6... d6 {[%clk
0:02:46.3]} 7. g3 {[%clk 0:03:08.5]} 7... O-O {[%clk 0:02:46.2]} 8. Bg2 {[%clk
0:03:08]} 8... Nd7 {[%clk 0:02:47.1]} 9. Nge2 {[%clk 0:03:08.9]} 9... h5 {[%clk
0:02:43.8]} 10. h4 {[%clk 0:03:07.6]} 10... Nf6 {[%clk 0:02:40]} 11. b4 {[%clk
0:03:07.6]} 11... c6 {[%clk 0:02:38.6]} 12. a4 {[%clk 0:03:04.5]} 12... Re8
{[%clk 0:02:23.3]} 13. Qd3 {[%clk 0:03:04.1]} 13... Qe7 {[%clk 0:02:17.8]} 14.
b5 {[%clk 0:03:04.4]} 14... Bd7 {[%clk 0:02:18.1]} 15. Rb1 {[%clk 0:03:05]}
15... Ne4 {[%clk 0:02:15.2]} 16. bxc6 {[%clk 0:03:04.2]} 16... bxc6 {[%clk
0:02:17.1]} 17. Rb7 {[%clk 0:03:04.7]} 17... Nxc3 {[%clk 0:01:53.7]} 18. Nxc3
{[%clk 0:03:05]} 18... Reb8 {[%clk 0:01:54.3]} 19. Rxb8+ {[%clk 0:02:53.1]}
19... Rxb8 {[%clk 0:01:56.2]} 20. O-O {[%clk 0:02:54.4]} 20... Qd8 {[%clk
0:01:46.2]} 21. Rb1 {[%clk 0:02:15.1]} 21... Rxb1+ {[%clk 0:01:44]} 22. Qxb1
{[%clk 0:02:16.1]} 22... c5 {[%clk 0:01:42.6]} 23. Qd3 {[%clk 0:01:53.9]} 23...
Qa5 {[%clk 0:01:32.5]} 24. Nb5 {[%clk 0:01:36.6]} 24... Bxb5 {[%clk 0:00:47.9]}
25. axb5 {[%clk 0:01:38.5]} 25... cxd4 {[%clk 0:00:42.8]} 26. Kh2 {[%clk
0:01:39.7]} 26... Qc3 {[%clk 0:00:33.1]} 27. Qe2 {[%clk 0:01:25.5]} 27... d3
{[%clk 0:00:30.2]} 28. Qa2 {[%clk 0:01:14.2]} 28... Qc2 {[%clk 0:00:19.3]} 29.
Qxa7 {[%clk 0:01:14.2]} 29... Qxf2 {[%clk 0:00:15.9]} 30. Qa8+ {[%clk
0:00:56.7]} 30... Kh7 {[%clk 0:00:15.9]} 31. Qf3 {[%clk 0:00:58.6]} 31... Qc2
{[%clk 0:00:14.9]} 32. b6 {[%clk 0:00:52.1]} 32... d2 {[%clk 0:00:12.1]} 33. b7
{[%clk 0:00:53.4]} 33... d1=Q {[%clk 0:00:12.7]} 34. Qxd1 {[%clk 0:00:52.5]}
34... Qxd1 {[%clk 0:00:13.5]} 35. b8=Q {[%clk 0:00:54.4]} 35... Qe2 {[%clk
0:00:13.4]} 36. Qxd6 {[%clk 0:00:54.5]} 36... Qxe3 {[%clk 0:00:14.3]} 37. c5
{[%clk 0:00:51.5]} 37... Be5 {[%clk 0:00:14.7]} 38. Qd7 {[%clk 0:00:47]} 38...
Bxg3+ {[%clk 0:00:14.6]} 39. Kh1 {[%clk 0:00:32.5]} 39... Qe1+ {[%clk
0:00:14.3]} 0-1

[Event "*** Titled Tuesday 3|2 Blitz"]
[Site "Chess.com"]
[Date "2016.10.04"]
[Round "3"]
[White "hypert"]
[Black "Mepetmepe"]
[Result "1/2-1/2"]
[WhiteElo "2289"]
[BlackElo "2334"]
[TimeControl "180+2"]
[EndTime "11:35:43 PDT"]
[Termination "Game drawn by repetition"]

1. e4 {[%clk 0:03:02]} 1... c6 {[%clk 0:03:00.5]} 2. d4 {[%clk 0:03:02.3]} 2...
d5 {[%clk 0:03:02.4]} 3. e5 {[%clk 0:03:03.4]} 3... c5 {[%clk 0:03:03.7]} 4.
dxc5 {[%clk 0:03:02.7]} 4... Nc6 {[%clk 0:03:05.1]} 5. Nf3 {[%clk 0:03:01.1]}
5... Bg4 {[%clk 0:03:05.1]} 6. Be3 {[%clk 0:02:59.3]} 6... e6 {[%clk 0:02:58.8]}
7. c3 {[%clk 0:02:59]} 7... Nh6 {[%clk 0:02:55.7]} 8. Bb5 {[%clk 0:02:58.4]}
8... Nf5 {[%clk 0:02:54]} 9. Bd4 {[%clk 0:02:57]} 9... Be7 {[%clk 0:02:50.7]}
10. h3 {[%clk 0:02:51.7]} 10... Bxf3 {[%clk 0:02:49.6]} 11. Qxf3 {[%clk
0:02:51.3]} 11... O-O {[%clk 0:02:51.5]} 12. Bxc6 {[%clk 0:02:49.2]} 12... bxc6
{[%clk 0:02:53.4]} 13. O-O {[%clk 0:02:42.5]} 13... a5 {[%clk 0:02:54.4]} 14. a4
{[%clk 0:02:38.1]} 14... Rb8 {[%clk 0:02:52.1]} 15. Ra2 {[%clk 0:02:35.2]} 15...
Qc7 {[%clk 0:02:52.5]} 16. Nd2 {[%clk 0:02:35.3]} 16... Qa7 {[%clk 0:02:52.3]}
17. g4 {[%clk 0:02:29.6]} 17... Nh4 {[%clk 0:02:52.7]} 18. Qe3 {[%clk
0:02:25.3]} 18... Qd7 {[%clk 0:02:32.7]} 19. Rb1 {[%clk 0:02:05.5]} 19... f6
{[%clk 0:02:33.8]} 20. b4 {[%clk 0:02:05.3]} 20... fxe5 {[%clk 0:02:31.7]} 21.
Bxe5 {[%clk 0:02:05.4]} 21... Rb7 {[%clk 0:02:22.9]} 22. Rab2 {[%clk 0:02:02.9]}
22... axb4 {[%clk 0:02:10.4]} 23. cxb4 {[%clk 0:02:03.2]} 23... Qd8 {[%clk
0:02:02.8]} 24. Bg3 {[%clk 0:01:50.1]} 24... Bg5 {[%clk 0:01:50.7]} 25. Qxe6+
{[%clk 0:01:42.6]} 25... Rbf7 {[%clk 0:01:52.1]} 26. Bxh4 {[%clk 0:01:06.5]}
26... Bxh4 {[%clk 0:01:54]} 27. Nf1 {[%clk 0:00:55.9]} 27... Kh8 {[%clk
0:01:53.9]} 28. Ng3 {[%clk 0:00:38.6]} 28... Bxg3 {[%clk 0:01:47.3]} 29. fxg3
{[%clk 0:00:40.5]} 29... d4 {[%clk 0:01:49.2]} 30. Qe4 {[%clk 0:00:38.3]} 30...
d3 {[%clk 0:01:49.7]} 31. Rd1 {[%clk 0:00:37.9]} 31... Qf6 {[%clk 0:01:46.3]}
32. Rg2 {[%clk 0:00:38.7]} 32... Qc3 {[%clk 0:01:40]} 33. Qxd3 {[%clk
0:00:37.1]} 33... Qxb4 {[%clk 0:01:39.7]} 34. Qc2 {[%clk 0:00:32.6]} 34... h6
{[%clk 0:01:36.8]} 35. Kh2 {[%clk 0:00:33.2]} 35... Rf3 {[%clk 0:01:32.2]} 36.
g5 {[%clk 0:00:33.5]} 36... hxg5 {[%clk 0:01:28.8]} 37. Qg6 {[%clk 0:00:31.3]}
37... Qxa4 {[%clk 0:01:25.3]} 38. Rd7 {[%clk 0:00:27.5]} 38... Qa1 {[%clk
0:01:26.2]} 39. Qxg5 {[%clk 0:00:20.5]} 39... Rf1 {[%clk 0:01:08.3]} 40. Qh4+
{[%clk 0:00:21.6]} 40... Kg8 {[%clk 0:01:09.4]} 41. Qc4+ {[%clk 0:00:23.2]}
41... Kh8 {[%clk 0:01:04.8]} 42. Qh4+ {[%clk 0:00:24.1]} 42... Kg8 {[%clk
0:01:06.2]} 43. Qc4+ {[%clk 0:00:23.6]} 43... Kh8 {[%clk 0:00:44.7]} 44. Qh4+
{[%clk 0:00:24.1]} 1/2-1/2

[Event "*** Titled Tuesday 3|2 Blitz"]
[Site "Chess.com"]
[Date "2016.10.04"]
[Round "3"]
[White "Andrejkin"]
[Black "MFBerna"]
[Result "0-1"]
[WhiteElo "2173"]
[BlackElo "2155"]
[TimeControl "180+2"]
[EndTime "11:36:30 PDT"]
[Termination "MFBerna won by checkmate"]

1. d4 {[%clk 0:03:02]} 1... d5 {[%clk 0:02:57.7]} 2. c4 {[%clk 0:03:02.9]} 2...
e6 {[%clk 0:02:58.5]} 3. Nc3 {[%clk 0:03:02.9]} 3... Be7 {[%clk 0:02:57.9]} 4.
Nf3 {[%clk 0:03:03.8]} 4... Nf6 {[%clk 0:02:57]} 5. Bf4 {[%clk 0:03:04.4]} 5...
O-O {[%clk 0:02:58.2]} 6. e3 {[%clk 0:03:05.6]} 6... Nbd7 {[%clk 0:02:59.7]} 7.
c5 {[%clk 0:03:05.2]} 7... Nh5 {[%clk 0:03:00]} 8. Bd3 {[%clk 0:03:05.2]} 8...
Nxf4 {[%clk 0:03:01.5]} 9. exf4 {[%clk 0:03:07.1]} 9... b6 {[%clk 0:03:02.9]}
10. b4 {[%clk 0:02:58.1]} 10... a5 {[%clk 0:03:03.7]} 11. c6 {[%clk 0:02:58.5]}
11... Bxb4 {[%clk 0:03:02.2]} 12. Rc1 {[%clk 0:02:55.5]} 12... Nb8 {[%clk
0:03:01.7]} 13. O-O {[%clk 0:02:53.8]} 13... Nxc6 {[%clk 0:03:00.2]} 14. Nb5
{[%clk 0:02:47.1]} 14... Bb7 {[%clk 0:02:50.2]} 15. a3 {[%clk 0:02:47]} 15...
Be7 {[%clk 0:02:34.8]} 16. f5 {[%clk 0:02:43.6]} 16... exf5 {[%clk 0:02:24.7]}
17. Bxf5 {[%clk 0:02:42.2]} 17... g6 {[%clk 0:02:24]} 18. Bd3 {[%clk 0:02:39.9]}
18... Bd6 {[%clk 0:02:20.6]} 19. Re1 {[%clk 0:02:32.8]} 19... Qf6 {[%clk
0:01:58.7]} 20. Qb3 {[%clk 0:02:19.5]} 20... Bf4 {[%clk 0:01:37.8]} 21. Rc2
{[%clk 0:02:11.7]} 21... a4 {[%clk 0:01:27.6]} 22. Qa2 {[%clk 0:02:04.7]} 22...
Rfe8 {[%clk 0:01:26.8]} 23. Rce2 {[%clk 0:01:54.1]} 23... Rxe2 {[%clk
0:01:22.5]} 24. Rxe2 {[%clk 0:01:56]} 24... Na5 {[%clk 0:00:54.7]} 25. Qc2
{[%clk 0:01:43.6]} 25... Nc4 {[%clk 0:00:51.9]} 26. Ne5 {[%clk 0:01:37.8]} 26...
Nxe5 {[%clk 0:00:42.6]} 27. dxe5 {[%clk 0:01:35.5]} 27... Bxe5 {[%clk
0:00:37.8]} 28. g3 {[%clk 0:01:33.2]} 28... c6 {[%clk 0:00:27.8]} 29. f4 {[%clk
0:01:32.3]} 29... Ba1 {[%clk 0:00:20]} 30. Nc7 {[%clk 0:01:30.4]} 30... Bd4+
{[%clk 0:00:17.1]} 31. Kg2 {[%clk 0:01:30.2]} 31... Rc8 {[%clk 0:00:17.8]} 32.
Ne8 {[%clk 0:01:09.7]} 32... Qd8 {[%clk 0:00:18.2]} 33. f5 {[%clk 0:01:04.4]}
33... Qd7 {[%clk 0:00:14.2]} 34. fxg6 {[%clk 0:00:58.9]} 34... hxg6 {[%clk
0:00:16.1]} 35. Bxg6 {[%clk 0:00:53.1]} 35... Rxe8 {[%clk 0:00:16.8]} 36. Bh7+
{[%clk 0:00:48.9]} 36... Kg7 {[%clk 0:00:14.3]} 37. Rd2 {[%clk 0:00:49.9]} 37...
c5 {[%clk 0:00:11.4]} 38. Bf5 {[%clk 0:00:48.3]} 38... Qe7 {[%clk 0:00:10.2]}
39. Qd1 {[%clk 0:00:49.4]} 39... Qg5 {[%clk 0:00:08.5]} 40. Bd7 {[%clk
0:00:49.2]} 40... Re3 {[%clk 0:00:07.7]} 41. Bb5 {[%clk 0:00:38.1]} 41... Be5
{[%clk 0:00:07.3]} 42. Kh1 {[%clk 0:00:35.6]} 42... d4+ {[%clk 0:00:08.5]} 43.
Kg1 {[%clk 0:00:36.2]} 43... Bxg3 {[%clk 0:00:09]} 44. hxg3 {[%clk 0:00:37.5]}
44... Qxg3+ {[%clk 0:00:10.3]} 45. Kf1 {[%clk 0:00:38.4]} 45... Rf3+ {[%clk
0:00:11.1]} 46. Qxf3 {[%clk 0:00:38.5]} 46... Qxf3+ {[%clk 0:00:13]} 47. Ke1
{[%clk 0:00:40.2]} 47... Be4 {[%clk 0:00:12.2]} 48. Rf2 {[%clk 0:00:38.6]} 48...
Qe3+ {[%clk 0:00:13.1]} 49. Kf1 {[%clk 0:00:39.7]} 49... d3 {[%clk 0:00:13.5]}
50. Bc4 {[%clk 0:00:37.3]} 50... d2 {[%clk 0:00:14.8]} 51. Rxf7+ {[%clk
0:00:38.3]} 51... Kg6 {[%clk 0:00:16.4]} 52. Rd7 {[%clk 0:00:37]} 52... Qe1#
{[%clk 0:00:14.7]} 0-1